[Event "*** Biggest EVER Titled Tuesday"]
[Site "Chess.com"]
[Date "2018.04.17"]
[Round "1"]
[White "Kangoroo3000"]
[Black "OparinGrigoriy"]
[Result "0-1"]
[WhiteElo "2428"]
[BlackElo "2857"]
[TimeControl "180+2"]
[EndTime "13:09:28 PDT"]
[Termination "OparinGrigoriy won by resignation"]

1. d4 {[%clk 0:02:59.5]} 1... Nf6 {[%clk 0:03:00.7]} 2. c4 {[%clk 0:03:00.2]}
2... e6 {[%clk 0:03:02.6]} 3. Nf3 {[%clk 0:03:00.1]} 3... Bb4+ {[%clk
0:03:03.6]} 4. Nbd2 {[%clk 0:03:00.8]} 4... O-O {[%clk 0:03:04]} 5. a3 {[%clk
0:02:58.5]} 5... Be7 {[%clk 0:03:05.4]} 6. e4 {[%clk 0:02:58.8]} 6... d6 {[%clk
0:03:06.7]} 7. Qc2 {[%clk 0:02:58.7]} 7... Nfd7 {[%clk 0:03:01]} 8. Be2 {[%clk
0:02:59.2]} 8... e5 {[%clk 0:03:02.4]} 9. Nb1 {[%clk 0:02:56.5]} 9... exd4
{[%clk 0:02:59.1]} 10. Nxd4 {[%clk 0:02:17.1]} 10... Bf6 {[%clk 0:03:00.2]} 11.
Be3 {[%clk 0:02:17.5]} 11... Nc6 {[%clk 0:02:58.1]} 12. Nxc6 {[%clk 0:02:17.7]}
12... bxc6 {[%clk 0:03:00]} 13. Nc3 {[%clk 0:02:18.2]} 13... Re8 {[%clk
0:03:01.1]} 14. f3 {[%clk 0:02:17.7]} 14... Nc5 {[%clk 0:02:57.2]} 15. O-O
{[%clk 0:02:15.4]} 15... a5 {[%clk 0:02:55.8]} 16. Rad1 {[%clk 0:02:15.6]} 16...
Qe7 {[%clk 0:02:56.8]} 17. Rfe1 {[%clk 0:02:15.9]} 17... a4 {[%clk 0:02:54.8]}
18. Bf1 {[%clk 0:01:57.3]} 18... h6 {[%clk 0:02:45.9]} 19. g3 {[%clk 0:01:56]}
19... Rb8 {[%clk 0:02:31.3]} 20. Bg2 {[%clk 0:01:55.2]} 20... Ba6 {[%clk
0:02:29.2]} 21. Nxa4 {[%clk 0:01:47.4]} 21... Nb3 {[%clk 0:01:55.1]} 22. f4
{[%clk 0:01:37.8]} 22... c5 {[%clk 0:01:51.7]} 23. Nxc5 {[%clk 0:00:38.4]} 23...
dxc5 {[%clk 0:01:24.6]} 24. e5 {[%clk 0:00:39.6]} 24... Nd4 {[%clk 0:01:23.9]}
25. Qf2 {[%clk 0:00:26.5]} 25... Bxc4 {[%clk 0:01:04.2]} 26. exf6 {[%clk
0:00:27.4]} 26... Qxf6 {[%clk 0:01:06.1]} 27. Rc1 {[%clk 0:00:20.8]} 27... Rxb2
{[%clk 0:00:45.9]} 28. Qxb2 {[%clk 0:00:18.8]} 28... Nf3+ {[%clk 0:00:43.2]} 29.
Bxf3 {[%clk 0:00:18.9]} 29... Qxb2 {[%clk 0:00:44.5]} 30. Rxc4 {[%clk
0:00:19.9]} 30... Qxa3 {[%clk 0:00:40.6]} 31. Re4 {[%clk 0:00:13]} 31... Rd8
{[%clk 0:00:34]} 32. Bf2 {[%clk 0:00:12.7]} 32... Qxf3 {[%clk 0:00:33.3]} 33.
R1e3 {[%clk 0:00:08.1]} 33... Qd1+ {[%clk 0:00:33.5]} 34. Kg2 {[%clk 0:00:09.3]}
34... Qd5 {[%clk 0:00:34.7]} 35. Kg1 {[%clk 0:00:09.6]} 35... c4 {[%clk
0:00:36]} 36. Re5 {[%clk 0:00:10.5]} 36... Qd1+ {[%clk 0:00:36.7]} 37. Re1
{[%clk 0:00:11.6]} 37... Qd3 {[%clk 0:00:36.2]} 38. Rc5 {[%clk 0:00:12]} 38...
c3 {[%clk 0:00:36.9]} 39. Rc1 {[%clk 0:00:13]} 39... Qe2 {[%clk 0:00:35.8]} 40.
R5xc3 {[%clk 0:00:12]} 40... Rd2 {[%clk 0:00:37.1]} 41. Rf1 {[%clk 0:00:13.1]}
41... Rc2 {[%clk 0:00:37.1]} 42. Re3 {[%clk 0:00:13.6]} 42... Qg4 {[%clk
0:00:37.3]} 43. Rfe1 {[%clk 0:00:13]} 43... h5 {[%clk 0:00:38.2]} 44. Re8+
{[%clk 0:00:13.6]} 44... Kh7 {[%clk 0:00:39.3]} 45. R8e3 {[%clk 0:00:15.2]}
45... h4 {[%clk 0:00:40.2]} 46. Re5 {[%clk 0:00:15.2]} 46... h3 {[%clk
0:00:40.1]} 47. R5e3 {[%clk 0:00:15.5]} 47... f6 {[%clk 0:00:40.6]} 48. Rf1
{[%clk 0:00:16]} 48... c5 {[%clk 0:00:41.6]} 49. Rfe1 {[%clk 0:00:08.2]} 49...
c4 {[%clk 0:00:42.4]} 50. Rf1 {[%clk 0:00:07.7]} 50... Qd7 {[%clk 0:00:40]} 51.
Be1 {[%clk 0:00:06.7]} 51... Qd5 {[%clk 0:00:40.2]} 52. Ref3 {[%clk 0:00:07.8]}
52... c3 {[%clk 0:00:39.9]} 53. g4 {[%clk 0:00:09.2]} 53... Rg2+ {[%clk
0:00:40.9]} 54. Kh1 {[%clk 0:00:10.2]} 54... Rxg4 {[%clk 0:00:42.3]} 55. Bxc3
{[%clk 0:00:10.3]} 55... Rxf4 {[%clk 0:00:43.4]} 0-1

[Event "*** Biggest EVER Titled Tuesday"]
[Site "Chess.com"]
[Date "2018.04.17"]
[Round "1"]
[White "Supernotar"]
[Black "aquaticpineapples"]
[Result "0-1"]
[WhiteElo "2447"]
[BlackElo "2081"]
[TimeControl "180+2"]
[EndTime "13:09:44 PDT"]
[Termination "aquaticpineapples won by checkmate"]

1. d4 {[%clk 0:02:59.1]} 1... d5 {[%clk 0:02:59.8]} 2. c4 {[%clk 0:02:59.5]}
2... e6 {[%clk 0:03:00.5]} 3. Nf3 {[%clk 0:02:59.8]} 3... Nf6 {[%clk 0:03:01]}
4. e3 {[%clk 0:03:00.4]} 4... c6 {[%clk 0:03:00.7]} 5. Nbd2 {[%clk 0:03:00.5]}
5... Bd6 {[%clk 0:02:57.6]} 6. Bd3 {[%clk 0:03:01.3]} 6... Nbd7 {[%clk
0:02:58.6]} 7. O-O {[%clk 0:03:01.6]} 7... b6 {[%clk 0:02:59.5]} 8. e4 {[%clk
0:03:02.4]} 8... dxe4 {[%clk 0:02:59.4]} 9. Nxe4 {[%clk 0:03:03.1]} 9... Be7
{[%clk 0:03:00.7]} 10. Qe2 {[%clk 0:03:02.4]} 10... Bb7 {[%clk 0:03:01.1]} 11.
b3 {[%clk 0:03:02.2]} 11... Nxe4 {[%clk 0:03:00.3]} 12. Qxe4 {[%clk 0:03:02]}
12... Nf6 {[%clk 0:03:01.3]} 13. Qh4 {[%clk 0:03:02.6]} 13... c5 {[%clk
0:02:57.2]} 14. Bb2 {[%clk 0:02:55.8]} 14... Bxf3 {[%clk 0:02:34.6]} 15. gxf3
{[%clk 0:02:55.6]} 15... g5 {[%clk 0:02:24.5]} 16. Qg3 {[%clk 0:02:47]} 16...
cxd4 {[%clk 0:02:21.7]} 17. Rad1 {[%clk 0:02:45.2]} 17... Nh5 {[%clk 0:02:22.3]}
18. Qe5 {[%clk 0:02:37.5]} 18... Bf6 {[%clk 0:02:19.4]} 19. Qb5+ {[%clk
0:02:36.4]} 19... Qd7 {[%clk 0:02:11.3]} 20. Qxd7+ {[%clk 0:02:32.5]} 20... Kxd7
{[%clk 0:02:06.9]} 21. Be4 {[%clk 0:02:33.5]} 21... Rad8 {[%clk 0:02:05.7]} 22.
Bxd4 {[%clk 0:02:33.7]} 22... Bxd4 {[%clk 0:02:06]} 23. Rxd4+ {[%clk 0:02:34.1]}
23... Ke7 {[%clk 0:02:07.2]} 24. Rfd1 {[%clk 0:02:33]} 24... f5 {[%clk
0:02:04.1]} 25. Bc6 {[%clk 0:02:31.5]} 25... Rxd4 {[%clk 0:01:55.9]} 26. Rxd4
{[%clk 0:02:29.3]} 26... Rd8 {[%clk 0:01:57]} 27. Rxd8 {[%clk 0:02:29.7]} 27...
Kxd8 {[%clk 0:01:58.9]} 28. Kf1 {[%clk 0:02:30.2]} 28... Nf4 {[%clk 0:01:47.8]}
29. Bb5 {[%clk 0:02:18.6]} 29... Kc7 {[%clk 0:01:48.2]} 30. b4 {[%clk
0:02:10.5]} 30... Kd6 {[%clk 0:01:47.7]} 31. a3 {[%clk 0:02:09.2]} 31... h5
{[%clk 0:01:45.9]} 32. Ke1 {[%clk 0:02:01.8]} 32... h4 {[%clk 0:01:40.6]} 33.
Kd2 {[%clk 0:02:02.3]} 33... Ke5 {[%clk 0:01:16.4]} 34. Ke3 {[%clk 0:01:57.9]}
34... Ng2+ {[%clk 0:01:10.2]} 35. Kd3 {[%clk 0:01:56.8]} 35... Ne1+ {[%clk
0:01:09.4]} 36. Ke2 {[%clk 0:01:54.4]} 36... Nc2 {[%clk 0:01:08.5]} 37. c5
{[%clk 0:01:48.4]} 37... bxc5 {[%clk 0:01:00.5]} 38. bxc5 {[%clk 0:01:49]} 38...
Nxa3 {[%clk 0:01:01.8]} 39. Bd7 {[%clk 0:01:44.3]} 39... Nc4 {[%clk 0:00:57.9]}
40. c6 {[%clk 0:01:43.7]} 40... Kd6 {[%clk 0:00:57.3]} 41. Bc8 {[%clk
0:01:29.9]} 41... Nb6 {[%clk 0:00:52.9]} 42. Bb7 {[%clk 0:01:29.6]} 42... a5
{[%clk 0:00:46.7]} 43. Kd3 {[%clk 0:01:29.4]} 43... Nd5 {[%clk 0:00:43.6]} 44.
Kc4 {[%clk 0:01:23.9]} 44... Nb4 {[%clk 0:00:42.4]} 45. Kb5 {[%clk 0:01:23.9]}
45... Kc7 {[%clk 0:00:37.3]} 46. Kxa5 {[%clk 0:01:20]} 46... Nxc6+ {[%clk
0:00:37.2]} 47. Ka6 {[%clk 0:01:20.4]} 47... Nb4+ {[%clk 0:00:28.9]} 48. Ka7
{[%clk 0:01:20]} 48... Nd3 {[%clk 0:00:29.9]} 49. Ba6 {[%clk 0:01:20.6]} 49...
Nxf2 {[%clk 0:00:30.1]} 50. Be2 {[%clk 0:01:20.5]} 50... g4 {[%clk 0:00:29.9]}
51. fxg4 {[%clk 0:01:20.7]} 51... fxg4 {[%clk 0:00:31.8]} 52. Ka6 {[%clk
0:01:22.1]} 52... Kd6 {[%clk 0:00:31.4]} 53. Kb5 {[%clk 0:01:22.7]} 53... Ke5
{[%clk 0:00:31.7]} 54. Kc4 {[%clk 0:01:24.2]} 54... Kf4 {[%clk 0:00:32.8]} 55.
Bf1 {[%clk 0:01:21.7]} 55... e5 {[%clk 0:00:30.8]} 56. Kc3 {[%clk 0:01:22.7]}
56... Ke3 {[%clk 0:00:30.4]} 57. Bg2 {[%clk 0:01:17.4]} 57... h3 {[%clk
0:00:28]} 58. Bf1 {[%clk 0:01:18]} 58... Ne4+ {[%clk 0:00:27.2]} 59. Kc2 {[%clk
0:01:16.1]} 59... Nd2 {[%clk 0:00:28.4]} 60. Ba6 {[%clk 0:01:14.9]} 60... g3
{[%clk 0:00:27.3]} 61. hxg3 {[%clk 0:01:15.5]} 61... h2 {[%clk 0:00:27.9]} 62.
Bb7 {[%clk 0:01:15.6]} 62... Nf3 {[%clk 0:00:27.4]} 63. g4 {[%clk 0:01:17.1]}
63... h1=Q {[%clk 0:00:28.1]} 64. g5 {[%clk 0:01:18.6]} 64... Qg2+ {[%clk
0:00:29.1]} 65. Kb3 {[%clk 0:01:18.4]} 65... Qxg5 {[%clk 0:00:30.3]} 66. Bd5
{[%clk 0:01:18.4]} 66... e4 {[%clk 0:00:31.2]} 67. Bc4 {[%clk 0:01:17.8]} 67...
Nd4+ {[%clk 0:00:33.1]} 68. Kc3 {[%clk 0:01:18.9]} 68... Qc5 {[%clk 0:00:34]}
69. Kb2 {[%clk 0:01:19.2]} 69... Qxc4 {[%clk 0:00:34.9]} 70. Ka1 {[%clk
0:01:20.7]} 70... Kd2 {[%clk 0:00:33.2]} 71. Kb2 {[%clk 0:01:21.6]} 71... Qb3+
{[%clk 0:00:33.8]} 72. Ka1 {[%clk 0:01:22.4]} 72... Nc2# {[%clk 0:00:35.7]} 0-1

[Event "*** Biggest EVER Titled Tuesday"]
[Site "Chess.com"]
[Date "2018.04.17"]
[Round "1"]
[White "peteseeger"]
[Black "sergeikim"]
[Result "0-1"]
[WhiteElo "2070"]
[BlackElo "2468"]
[TimeControl "180+2"]
[EndTime "13:09:51 PDT"]
[Termination "sergeikim won on time"]

1. e4 {[%clk 0:03:01.7]} 1... e5 {[%clk 0:03:00.3]} 2. Nf3 {[%clk 0:03:01.3]}
2... Nc6 {[%clk 0:03:01.2]} 3. Bc4 {[%clk 0:03:02.1]} 3... Bc5 {[%clk
0:03:01.1]} 4. c3 {[%clk 0:03:02.8]} 4... Nf6 {[%clk 0:03:02]} 5. d4 {[%clk
0:03:03.4]} 5... exd4 {[%clk 0:03:02.9]} 6. e5 {[%clk 0:03:04.1]} 6... d5 {[%clk
0:03:02.2]} 7. Bb5 {[%clk 0:03:05.1]} 7... Ne4 {[%clk 0:03:01.9]} 8. cxd4 {[%clk
0:03:06.1]} 8... Be7 {[%clk 0:02:57.4]} 9. Nc3 {[%clk 0:03:04.9]} 9... O-O
{[%clk 0:02:56.2]} 10. Be3 {[%clk 0:03:00.6]} 10... Bg4 {[%clk 0:02:52.1]} 11.
h3 {[%clk 0:02:52.8]} 11... Bh5 {[%clk 0:02:52.1]} 12. Qc2 {[%clk 0:02:50.1]}
12... Bg6 {[%clk 0:02:49.2]} 13. Qb3 {[%clk 0:02:44]} 13... Nxc3 {[%clk
0:02:23.8]} 14. bxc3 {[%clk 0:02:43.2]} 14... Na5 {[%clk 0:02:21.2]} 15. Qa4
{[%clk 0:02:35.5]} 15... c6 {[%clk 0:02:19.9]} 16. Be2 {[%clk 0:02:35.8]} 16...
b5 {[%clk 0:02:19.9]} 17. Qd1 {[%clk 0:02:33]} 17... Nc4 {[%clk 0:02:20.5]} 18.
O-O {[%clk 0:02:32.7]} 18... a5 {[%clk 0:02:14.7]} 19. a4 {[%clk 0:02:28.3]}
19... b4 {[%clk 0:02:11.3]} 20. cxb4 {[%clk 0:02:25]} 20... axb4 {[%clk
0:02:08.2]} 21. Qb3 {[%clk 0:02:10.9]} 21... Na5 {[%clk 0:02:03.9]} 22. Qb2
{[%clk 0:02:01.4]} 22... Qb6 {[%clk 0:01:56.6]} 23. Nd2 {[%clk 0:01:45.6]} 23...
Rfb8 {[%clk 0:01:48]} 24. f4 {[%clk 0:01:42.1]} 24... f6 {[%clk 0:01:42.4]} 25.
f5 {[%clk 0:01:41]} 25... Be8 {[%clk 0:01:38.7]} 26. e6 {[%clk 0:01:41.2]} 26...
c5 {[%clk 0:01:33]} 27. dxc5 {[%clk 0:01:31]} 27... Bxc5 {[%clk 0:01:33.6]} 28.
Bxc5 {[%clk 0:01:31.5]} 28... Qxc5+ {[%clk 0:01:34.5]} 29. Kh1 {[%clk 0:01:33]}
29... b3 {[%clk 0:01:33]} 30. Bf3 {[%clk 0:01:20.1]} 30... Rb4 {[%clk
0:01:21.4]} 31. Rad1 {[%clk 0:01:09.6]} 31... Rab8 {[%clk 0:01:10.9]} 32. Rc1
{[%clk 0:00:52.6]} 32... Qd6 {[%clk 0:01:08.3]} 33. Rfd1 {[%clk 0:00:49.2]}
33... Rxa4 {[%clk 0:01:04.9]} 34. Ne4 {[%clk 0:00:46]} 34... Qa3 {[%clk
0:00:51.2]} 35. Nxf6+ {[%clk 0:00:36.6]} 35... gxf6 {[%clk 0:00:43.3]} 36. Qxf6
{[%clk 0:00:36.7]} 36... Qf8 {[%clk 0:00:43.4]} 37. Qe5 {[%clk 0:00:33]} 37...
Nc6 {[%clk 0:00:28.3]} 38. Qxd5 {[%clk 0:00:30.1]} 38... Ne7 {[%clk 0:00:25.8]}
39. Qe5 {[%clk 0:00:28]} 39... Rb5 {[%clk 0:00:25.7]} 40. Qg3+ {[%clk
0:00:20.9]} 40... Qg7 {[%clk 0:00:26.6]} 41. Qxg7+ {[%clk 0:00:18.7]} 41... Kxg7
{[%clk 0:00:27.4]} 42. Rd8 {[%clk 0:00:18.5]} 42... b2 {[%clk 0:00:26.5]} 43.
Rb1 {[%clk 0:00:17.3]} 43... Ra1 {[%clk 0:00:27.2]} 44. Be4 {[%clk 0:00:16]}
44... Bc6 {[%clk 0:00:28.1]} 45. Bd3 {[%clk 0:00:11]} 45... Rd5 {[%clk
0:00:26.6]} 46. Rxd5 {[%clk 0:00:08.3]} 46... Bxd5 {[%clk 0:00:26.8]} 47. Kh2
{[%clk 0:00:10.2]} 47... Rxb1 {[%clk 0:00:27.4]} 48. Bxb1 {[%clk 0:00:11]} 48...
Kf6 {[%clk 0:00:28.3]} 49. g4 {[%clk 0:00:11.9]} 49... Nc6 {[%clk 0:00:28.9]}
50. Kg3 {[%clk 0:00:12.8]} 50... Ne5 {[%clk 0:00:27.7]} 51. Kf4 {[%clk
0:00:12.4]} 51... Nc4 {[%clk 0:00:25.2]} 52. g5+ {[%clk 0:00:13.2]} 52... Ke7
{[%clk 0:00:26.4]} 53. g6 {[%clk 0:00:06.1]} 53... h6 {[%clk 0:00:25.7]} 54. Ba2
{[%clk 0:00:04.2]} 54... Kf6 {[%clk 0:00:25.2]} 0-1

[Event "*** Biggest EVER Titled Tuesday"]
[Site "Chess.com"]
[Date "2018.04.17"]
[Round "1"]
[White "MartinMatthiesen"]
[Black "MITerryble"]
[Result "0-1"]
[WhiteElo "2329"]
[BlackElo "2649"]
[TimeControl "180+2"]
[EndTime "13:09:53 PDT"]
[Termination "MITerryble won by resignation"]

1. d4 {[%clk 0:02:56.6]} 1... e6 {[%clk 0:03:01]} 2. c4 {[%clk 0:02:56.9]} 2...
Bb4+ {[%clk 0:03:00.8]} 3. Bd2 {[%clk 0:02:56.4]} 3... Qe7 {[%clk 0:03:01.6]} 4.
Nf3 {[%clk 0:02:55]} 4... Nf6 {[%clk 0:03:02]} 5. Nc3 {[%clk 0:02:55.1]} 5...
O-O {[%clk 0:03:02.1]} 6. g3 {[%clk 0:02:55.2]} 6... Bxc3 {[%clk 0:02:59.3]} 7.
Bxc3 {[%clk 0:02:55.6]} 7... Ne4 {[%clk 0:03:00.7]} 8. Qc2 {[%clk 0:02:54.5]}
8... Nxc3 {[%clk 0:03:01.5]} 9. Qxc3 {[%clk 0:02:53.9]} 9... d6 {[%clk
0:03:03.4]} 10. Bg2 {[%clk 0:02:54.2]} 10... Nd7 {[%clk 0:03:01.5]} 11. O-O
{[%clk 0:02:54.3]} 11... e5 {[%clk 0:03:02.7]} 12. e4 {[%clk 0:02:47]} 12... a5
{[%clk 0:03:00.3]} 13. Rfe1 {[%clk 0:02:35.2]} 13... Re8 {[%clk 0:03:00.3]} 14.
Rad1 {[%clk 0:02:32.5]} 14... b6 {[%clk 0:02:57.3]} 15. b3 {[%clk 0:02:17.4]}
15... Bb7 {[%clk 0:02:56.9]} 16. d5 {[%clk 0:02:17.7]} 16... Bc8 {[%clk
0:02:49.8]} 17. Rf1 {[%clk 0:02:17.1]} 17... Nc5 {[%clk 0:02:50.3]} 18. Ne1
{[%clk 0:02:16.8]} 18... f5 {[%clk 0:02:50.7]} 19. exf5 {[%clk 0:02:12.1]} 19...
Bxf5 {[%clk 0:02:52.6]} 20. a3 {[%clk 0:02:05.8]} 20... Rf8 {[%clk 0:02:46]} 21.
b4 {[%clk 0:02:05.4]} 21... axb4 {[%clk 0:02:46.6]} 22. axb4 {[%clk 0:02:06]}
22... Nd7 {[%clk 0:02:42.5]} 23. Nc2 {[%clk 0:02:00.1]} 23... Bxc2 {[%clk
0:02:17.7]} 24. Qxc2 {[%clk 0:01:59]} 24... Nf6 {[%clk 0:02:19.6]} 25. c5 {[%clk
0:01:49.3]} 25... bxc5 {[%clk 0:02:19.6]} 26. bxc5 {[%clk 0:01:49.7]} 26... Ra5
{[%clk 0:02:20.5]} 27. cxd6 {[%clk 0:01:49.6]} 27... cxd6 {[%clk 0:02:22.4]} 28.
Ra1 {[%clk 0:01:45.6]} 28... Rc5 {[%clk 0:02:22.4]} 29. Qb3 {[%clk 0:01:43.4]}
29... Kh8 {[%clk 0:02:19.7]} 30. Ra6 {[%clk 0:01:40.5]} 30... h5 {[%clk
0:02:00.1]} 31. Rc6 {[%clk 0:01:34.1]} 31... Rc8 {[%clk 0:01:49.8]} 32. Qb6
{[%clk 0:01:06.7]} 32... e4 {[%clk 0:01:46.2]} 33. Rxd6 {[%clk 0:01:01.7]} 33...
Nxd5 {[%clk 0:01:47.3]} 34. Qa6 {[%clk 0:00:49.2]} 34... Nb4 {[%clk 0:01:38.6]}
35. Qb6 {[%clk 0:00:45.9]} 35... Nd5 {[%clk 0:01:39]} 36. Qa6 {[%clk 0:00:46.4]}
36... Nf6 {[%clk 0:01:23.6]} 37. h3 {[%clk 0:00:42]} 37... e3 {[%clk 0:01:24.5]}
38. fxe3 {[%clk 0:00:38.7]} 38... Qxe3+ {[%clk 0:01:26.2]} 39. Kh2 {[%clk
0:00:39.6]} 39... Rc3 {[%clk 0:01:06.8]} 40. Rf3 {[%clk 0:00:31.1]} 40... Qe5
{[%clk 0:01:05.1]} 41. Re6 {[%clk 0:00:27.3]} 41... Qg5 {[%clk 0:00:11.3]} 42.
Rexf6 {[%clk 0:00:15.5]} 42... gxf6 {[%clk 0:00:11.2]} 43. Qxf6+ {[%clk
0:00:17.4]} 43... Qxf6 {[%clk 0:00:11.8]} 44. Rxf6 {[%clk 0:00:19.3]} 44... Kg7
{[%clk 0:00:11.4]} 45. Rf5 {[%clk 0:00:19.9]} 45... Kh6 {[%clk 0:00:10.9]} 46.
h4 {[%clk 0:00:20.4]} 46... Rc2 {[%clk 0:00:11.4]} 47. Kh3 {[%clk 0:00:21.3]}
47... Kg6 {[%clk 0:00:12.5]} 48. Rg5+ {[%clk 0:00:21.9]} 48... Kf6 {[%clk
0:00:12.4]} 49. Rxh5 {[%clk 0:00:22.4]} 49... Rb2 {[%clk 0:00:12.7]} 50. Rh6+
{[%clk 0:00:22.9]} 50... Kg7 {[%clk 0:00:13.6]} 51. Ra6 {[%clk 0:00:23.2]} 51...
Rc3 {[%clk 0:00:13.7]} 52. Be4 {[%clk 0:00:22.9]} 52... Rb4 {[%clk 0:00:13.1]}
53. Re6 {[%clk 0:00:22.6]} 53... Kf7 {[%clk 0:00:13.7]} 54. Bd5 {[%clk
0:00:23.5]} 54... Kg7 {[%clk 0:00:14.4]} 55. h5 {[%clk 0:00:23.9]} 55... Rc5
{[%clk 0:00:12.2]} 56. h6+ {[%clk 0:00:24.3]} 56... Kh7 {[%clk 0:00:11.5]} 57.
Ba2 {[%clk 0:00:25.3]} 57... Rh5+ {[%clk 0:00:10.8]} 58. Kg2 {[%clk 0:00:26.5]}
58... Rb2+ {[%clk 0:00:11.7]} 59. Kf3 {[%clk 0:00:27]} 59... Rxa2 {[%clk
0:00:12.9]} 0-1

[Event "*** Biggest EVER Titled Tuesday"]
[Site "Chess.com"]
[Date "2018.04.17"]
[Round "1"]
[White "TheCount"]
[Black "ToivoK3"]
[Result "1/2-1/2"]
[WhiteElo "2538"]
[BlackElo "2210"]
[TimeControl "180+2"]
[EndTime "13:09:57 PDT"]
[Termination "Game drawn by repetition"]

1. d4 {[%clk 0:02:59.4]} 1... d5 {[%clk 0:03:00.6]} 2. c4 {[%clk 0:03:00.1]}
2... e6 {[%clk 0:03:01.6]} 3. Nc3 {[%clk 0:02:59.1]} 3... Be7 {[%clk 0:03:02.5]}
4. Bf4 {[%clk 0:02:59.4]} 4... Nf6 {[%clk 0:03:03.4]} 5. e3 {[%clk 0:03:00.5]}
5... O-O {[%clk 0:03:04.6]} 6. a3 {[%clk 0:03:00.8]} 6... c5 {[%clk 0:02:58.1]}
7. dxc5 {[%clk 0:03:00.9]} 7... Bxc5 {[%clk 0:03:00]} 8. Nf3 {[%clk 0:03:01.4]}
8... Nc6 {[%clk 0:02:53.1]} 9. Qc2 {[%clk 0:03:00.8]} 9... Re8 {[%clk
0:02:51.7]} 10. Rd1 {[%clk 0:03:01.2]} 10... e5 {[%clk 0:02:51.3]} 11. Bg5
{[%clk 0:03:00.8]} 11... d4 {[%clk 0:02:52.1]} 12. Ne4 {[%clk 0:02:25.4]} 12...
Be7 {[%clk 0:02:49.8]} 13. Bxf6 {[%clk 0:02:13.2]} 13... Bxf6 {[%clk 0:02:49.6]}
14. Bd3 {[%clk 0:02:01]} 14... g6 {[%clk 0:02:27.1]} 15. exd4 {[%clk 0:01:50.1]}
15... exd4 {[%clk 0:02:22.7]} 16. h3 {[%clk 0:01:51.3]} 16... Bf5 {[%clk
0:02:11.9]} 17. O-O {[%clk 0:01:50.4]} 17... Bxe4 {[%clk 0:02:00.1]} 18. Bxe4
{[%clk 0:01:46.4]} 18... Qc7 {[%clk 0:02:02]} 19. Bd5 {[%clk 0:01:41.3]} 19...
Ne7 {[%clk 0:01:48.2]} 20. Be4 {[%clk 0:01:36.1]} 20... Rad8 {[%clk 0:01:45.8]}
21. Rfe1 {[%clk 0:01:36.7]} 21... Nc8 {[%clk 0:01:30.6]} 22. Bd5 {[%clk
0:01:25.2]} 22... Rxe1+ {[%clk 0:01:29.3]} 23. Rxe1 {[%clk 0:01:26]} 23... Nb6
{[%clk 0:01:30.4]} 24. Qb3 {[%clk 0:00:55.6]} 24... Nxd5 {[%clk 0:01:26.4]} 25.
cxd5 {[%clk 0:00:57.5]} 25... Qd7 {[%clk 0:01:28.3]} 26. d6 {[%clk 0:00:51.8]}
26... b6 {[%clk 0:01:13.2]} 27. Qd5 {[%clk 0:00:15.7]} 27... Qxd6 {[%clk
0:01:03.6]} 28. Qxd6 {[%clk 0:00:17.6]} 28... Rxd6 {[%clk 0:01:04.4]} 29. Rd1
{[%clk 0:00:19.3]} 29... d3 {[%clk 0:01:03]} 30. Rd2 {[%clk 0:00:20.7]} 30...
Kg7 {[%clk 0:00:47.4]} 31. Kf1 {[%clk 0:00:21.2]} 31... b5 {[%clk 0:00:38]} 32.
Ke1 {[%clk 0:00:22.3]} 32... g5 {[%clk 0:00:26.7]} 33. Kd1 {[%clk 0:00:23.3]}
33... Kg6 {[%clk 0:00:22.5]} 34. Ne1 {[%clk 0:00:24.4]} 34... h5 {[%clk
0:00:23.6]} 35. Nxd3 {[%clk 0:00:25.1]} 35... Kg7 {[%clk 0:00:18]} 36. Kc2
{[%clk 0:00:26.3]} 36... g4 {[%clk 0:00:18.5]} 37. hxg4 {[%clk 0:00:27.1]} 37...
hxg4 {[%clk 0:00:20.4]} 38. Re2 {[%clk 0:00:23.7]} 38... Bd4 {[%clk 0:00:18.8]}
39. Re4 {[%clk 0:00:23.8]} 39... f5 {[%clk 0:00:18.5]} 40. Re7+ {[%clk
0:00:23.1]} 40... Kf6 {[%clk 0:00:19.8]} 41. Re8 {[%clk 0:00:21.3]} 41... Bb6
{[%clk 0:00:20.3]} 42. f3 {[%clk 0:00:22.3]} 42... gxf3 {[%clk 0:00:18.8]} 43.
gxf3 {[%clk 0:00:24.2]} 43... Re6 {[%clk 0:00:20.2]} 44. Rf8+ {[%clk 0:00:21.5]}
44... Kg5 {[%clk 0:00:19.1]} 45. Rg8+ {[%clk 0:00:21.2]} 45... Kf6 {[%clk
0:00:20]} 46. f4 {[%clk 0:00:20.5]} 46... Re3 {[%clk 0:00:16.5]} 47. Rf8+ {[%clk
0:00:20.8]} 47... Ke6 {[%clk 0:00:12.6]} 48. Re8+ {[%clk 0:00:19.3]} 48... Kf6
{[%clk 0:00:13.4]} 49. Rf8+ {[%clk 0:00:19.7]} 49... Ke6 {[%clk 0:00:14.4]} 50.
b3 {[%clk 0:00:14.8]} 50... Rg3 {[%clk 0:00:14.2]} 51. a4 {[%clk 0:00:15.4]}
51... bxa4 {[%clk 0:00:15]} 52. bxa4 {[%clk 0:00:17.3]} 52... Bd4 {[%clk
0:00:14]} 53. Re8+ {[%clk 0:00:16.2]} 53... Kd5 {[%clk 0:00:14.2]} 54. Rd8+
{[%clk 0:00:13]} 54... Kc4 {[%clk 0:00:13.6]} 55. Rc8+ {[%clk 0:00:14]} 55...
Kd5 {[%clk 0:00:14.1]} 56. Rd8+ {[%clk 0:00:15.3]} 56... Kc4 {[%clk 0:00:15.1]}
57. Rc8+ {[%clk 0:00:08.8]} 57... Kd5 {[%clk 0:00:16.1]} 58. Rd8+ {[%clk
0:00:07.4]} 1/2-1/2